fUST/lending_fUST_20250601
["ID","MTS","AMOUNT","RATE_DAILY","PERIOD"]
[363620981,1748789453417,-430.0,0.00021643,2]
[363620982,1748789453426,-618.91,0.00021643,2]
[363620983,1748789453436,-1996.58,0.00021643,2]
[363620984,1748789453445,-751.49,0.00021643,2]
[363620985,1748789453455,-553.86,0.00021643,2]
[363620986,1748789453554,-494.99,0.00021643,2]
[363620987,1748789453564,-590.49,0.00021643,2]
[363620988,1748789453574,-1546.51,0.00021643,2]
[363620989,1748789453584,-1175.69,0.00021643,2]
[363620990,1748789453594,-503.4,0.00021643,2]
[363620991,1748789453604,-695.72,0.00021643,2]
[363620992,1748789453614,-688.43,0.00021643,2]
[363620993,1748789453624,-496.26,0.00021643,2]
[363620994,1748789453634,-1186.93,0.00021643,2]
[363620995,1748789453644,-446.82,0.00021643,2]
[363620996,1748789453653,-655.48,0.00021643,2]
[363620997,1748789453663,-570.52,0.00021643,2]
[363620998,1748789453673,-1837.67,0.00021643,2]
[363620999,1748789453682,-1074.26,0.00021643,2]
[363621000,1748789453693,-537.73,0.00021643,2]
[363621001,1748789453703,-2920.54632385,0.00021728,5]
[363621002,1748789453713,-151.0,0.000218,3]
[363621003,1748789453723,-193.30573625,0.00021873,2]
[363621004,1748789453733,-1897.83612532,0.000219,2]
[363621005,1748789453744,-1000.54762423,0.00021903,2]
[363621007,1748789453755,-430.0,0.00021917,2]
[363621008,1748789453766,-618.91,0.00021917,2]
[363621009,1748789453775,-1996.58,0.00021917,2]
[363621010,1748789453785,-751.49,0.00021917,2]
[363621011,1748789453795,-553.86,0.00021917,2]
[363621012,1748789453804,-494.99,0.00021917,2]
[363621013,1748789453813,-590.49,0.00021917,2]
[363621014,1748789453823,-1546.51,0.00021917,2]
[363621015,1748789453832,-1175.69,0.00021917,2]
[363621016,1748789453842,-503.4,0.00021917,2]
[363621017,1748789453852,-695.72,0.00021917,2]
[363621018,1748789453864,-688.43,0.00021917,2]
[363621019,1748789453875,-496.26,0.00021917,2]
[363621020,1748789453885,-1186.93,0.00021917,2]
[363621021,1748789453894,-446.82,0.00021917,2]
[363621022,1748789453904,-655.48,0.00021917,2]
[363621023,1748789453916,-570.52,0.00021917,2]
[363621024,1748789453927,-1837.67,0.00021917,2]
[363621025,1748789453937,-1074.26,0.00021917,2]
[363621026,1748789453949,-537.73,0.00021917,2]
[363621027,1748789453960,-2920.54632385,0.00021969,6]
[363621028,1748789453969,-126786.23,0.00022,7]
[363621029,1748789453979,-198.0,0.00022,2]
[363621030,1748789453989,-198.0,0.00022,2]
[363621031,1748789453998,-151.0,0.00022,7]
[363621032,1748789454008,-154.222867,0.00022,7]
[363621033,1748789454018,-151.0,0.00022,7]
[363621034,1748789454031,-151.0,0.00022,7]
[363621035,1748789454041,-172.557018,0.00022,7]
[363621036,1748789454050,-172.557018,0.00022,7]
[363621037,1748789454060,-151.0,0.00022,7]
[363621038,1748789454070,-2000.0,0.00022,2]
[363621039,1748789454080,-151.0,0.00022,7]
[363621040,1748789454090,-430.0,0.00022191,2]
[363621041,1748789454100,-618.91,0.00022191,2]
[363621042,1748789454111,-1996.58,0.00022191,2]
[363621043,1748789454120,-751.49,0.00022191,2]
[363621044,1748789454130,-553.86,0.00022191,2]
[363621045,1748789454140,-494.99,0.00022191,2]
[363621046,1748789454149,-590.49,0.00022191,2]
[363621047,1748789454159,-1546.51,0.00022191,2]
[363621048,1748789454168,-1175.69,0.00022191,2]
[363621049,1748789454178,-503.4,0.00022191,2]
[363621050,1748789454189,-695.72,0.00022191,2]
[363621051,1748789454201,-688.43,0.00022191,2]
[363621052,1748789454211,-496.26,0.00022191,2]
[363621053,1748789454221,-1186.93,0.00022191,2]
[363621054,1748789454231,-446.82,0.00022191,2]
[363621055,1748789454241,-655.48,0.00022191,2]
[363621056,1748789454251,-570.52,0.00022191,2]
[363621057,1748789454260,-1837.67,0.00022191,2]
[363621058,1748789454270,-1074.26,0.00022191,2]
[363621059,1748789454279,-537.73,0.00022191,2]
[363621060,1748789454289,-2920.54632385,0.0002221,6]
[363621061,1748789454298,-500.0,0.00022259,2]
[363621062,1748789454308,-151.0,0.000224,9]
[363621063,1748789454318,-28763.52,0.000224,2]
[363621064,1748789454328,-2920.54632385,0.00022452,7]
[363621065,1748789454338,-311.55523875,0.00022465,2]
[363621066,1748789454348,-618.91,0.00022465,2]
[363621067,1748789454358,-1996.58,0.00022465,2]
[363621068,1748789454367,-751.49,0.00022465,2]
[363621069,1748789454378,-553.86,0.00022465,2]
[363621070,1748789454388,-494.99,0.00022465,2]
[363621071,1748789454397,-590.49,0.00022465,2]
[363621072,1748789454407,-1546.51,0.00022465,2]
[363621073,1748789454417,-1175.69,0.00022465,2]
[363621074,1748789454427,-503.4,0.00022465,2]
[363621075,1748789454437,-695.72,0.00022465,2]
[363621076,1748789454446,-688.43,0.00022465,2]
[363621077,1748789454456,-496.26,0.00022465,2]
[363621078,1748789454466,-1186.93,0.00022465,2]
[363621079,1748789454476,-446.82,0.00022465,2]
[363621080,1748789454486,-655.48,0.00022465,2]
[363621081,1748789454496,-570.52,0.00022465,2]
[363621082,1748789454506,-1837.67,0.00022465,2]
[363621083,1748789454515,-1074.26,0.00022465,2]
[363621084,1748789454525,-537.73,0.00022465,2]
[363621085,1748789454535,-2864.97,0.000225,2]
[363621086,1748789454544,-173.899304,0.00022603,2]
[363621087,1748789454554,-154.67873888,0.00022609,2]
[363621088,1748789454564,-500.0,0.00022609,2]
[363621089,1748789454573,-500.0,0.00022609,2]
[363621090,1748789454583,-500.0,0.00022609,2]
[363621091,1748789454592,-500.0,0.00022609,2]
[363621092,1748789454602,-207.4,0.00022609,2]
[363621093,1748789454611,-500.0,0.00022609,2]
[363621094,1748789454622,-5000.0,0.00022609,2]
[363621095,1748789454631,-500.0,0.00022609,2]
[363621096,1748789454641,-500.0,0.00022609,2]
[363621097,1748789454651,-500.0,0.00022609,2]
[363621098,1748789454662,-500.0,0.00022609,2]
[363621099,1748789454671,-500.0,0.00022609,2]
[363621100,1748789454681,-500.0,0.00022609,2]
[363621101,1748789454692,-500.0,0.00022609,2]
[363621102,1748789454702,-500.0,0.00022609,2]
[363621103,1748789454711,-500.0,0.00022609,2]
[363621104,1748789454721,-500.0,0.00022609,2]
[363621105,1748789454730,-2920.54632385,0.00022693,7]
[363621106,1748789454740,-618.97247817,0.00022739,2]
[363621107,1748789454750,-1996.59032006,0.00022739,2]
[363621108,1748789454759,-751.65,0.00022739,2]
[363621109,1748789454769,-554.08811617,0.00022739,2]
[363621110,1748789454779,-495.15,0.00022739,2]
[363621111,1748789454788,-590.49122629,0.00022739,2]
[363621112,1748789454800,-1546.69932414,0.00022739,2]
[363621113,1748789454811,-1175.76577583,0.00022739,2]
[363621114,1748789454821,-503.49261158,0.00022739,2]
[363621115,1748789454830,-695.81,0.00022739,2]
[363621116,1748789454841,-688.55,0.00022739,2]
[363621117,1748789454850,-496.4912719,0.00022739,2]
[363621118,1748789454860,-1186.95978705,0.00022739,2]
[363621119,1748789454873,-447.0,0.00022739,2]
[363621120,1748789454883,-655.64,0.00022739,2]
[363621121,1748789454893,-570.71447588,0.00022739,2]
[363621122,1748789454903,-1837.85,0.00022739,2]
[363621123,1748789454913,-1074.46,0.00022739,2]
[363621124,1748789454923,-537.89295285,0.00022739,2]
[363621125,1748789454933,-418.86,0.000228,7]
[363621126,1748789454942,-9859.40490574,0.00022918,2]
[363621127,1748789454952,-5000.0,0.00022918,2]
[363621128,1748789454962,-5000.0,0.00022918,2]
[363621129,1748789454972,-5000.0,0.00022918,2]
[363621130,1748789454982,-5000.0,0.00022918,2]
[363621131,1748789454993,-2920.54632385,0.00022934,8]
[363621132,1748789455002,-153.0,0.00022986,2]
[363621133,1748789455012,-352.9781038,0.00022986,2]
[363621134,1748789455021,-316.9696796,0.00022986,2]
[363621135,1748789455031,-1144.7854742,0.00022986,2]
[363621136,1748789455041,-158.4848398,0.00022986,2]
[363621137,1748789455050,-464.0571157,0.00022986,2]
[363621138,1748789455059,-572.3927371,0.00022986,2]
[363621139,1748789455069,-153.0,0.00022986,2]
[363621140,1748789455079,-160.0,0.00023,3]
[363621141,1748789455089,-423.51412927,0.00023,3]
[363621142,1748789455100,-229.3709046,0.00023,3]
[363621143,1748789455110,-160.0,0.00023,3]
[363621144,1748789455120,-155.3651621,0.00023014,2]
[363621145,1748789455130,-572.3927371,0.00023041,2]
[363621146,1748789455140,-176.4890519,0.00023041,2]
[363621147,1748789455152,-153.0,0.00023041,2]
[363621148,1748789455161,-173.4381982,0.00023041,2]
[363621149,1748789455171,-728.58,0.00023054,2]
[363621150,1748789455182,-247.45,0.000231,7]
[363621151,1748789455193,-151.0,0.000231,8]
[363621152,1748789455202,-151.0,0.000231,7]
[363621153,1748789455212,-5000.0,0.00023157,2]
[363621154,1748789455222,-2920.54632385,0.00023176,8]
[363621155,1748789455231,-151.0,0.000233,9]
[363621156,1748789455241,-1396.697928,0.00023324,3]
[363621157,1748789455251,-2920.54632385,0.00023417,9]
[363621158,1748789455260,-30391.77,0.00023473,6]
[363621159,1748789455270,-122938.48,0.00023473,6]
[363621160,1748789455281,-41919.22,0.00023484,6]
[363621161,1748789455291,-3695.69825899,0.00023562,2]
[363621162,1748789455301,-3088.65435801,0.000236,5]
[363621163,1748789455312,-151.0,0.000236,5]
[363621164,1748789455321,-2920.54632385,0.00023659,9]
[363621165,1748789455332,-5000.0,0.00023665,30]
[363621166,1748789455342,-5000.0,0.00023665,30]
[363621167,1748789455352,-5000.0,0.00023665,30]
[363621168,1748789455362,-5000.0,0.00023665,30]
[363621169,1748789455372,-5000.0,0.00023665,30]
[363621170,1748789455382,-5000.0,0.00023665,30]
[363621171,1748789455392,-5000.0,0.00023665,30]
[363621172,1748789455402,-5000.0,0.00023665,30]
[363621173,1748789455411,-5000.0,0.00023665,30]
[363621174,1748789455421,-5000.0,0.00023665,30]
[363621175,1748789455430,-5000.0,0.00023665,30]
[363621176,1748789455439,-5000.0,0.00023665,30]
[363621177,1748789455533,-5000.0,0.00023665,30]
[363621178,1748789455544,-5000.0,0.00023665,30]
[363621179,1748789455554,-5000.0,0.00023665,30]
[363621180,1748789455564,-5000.0,0.00023665,30]
[363621181,1748789455574,-5000.0,0.00023665,30]
[363621182,1748789455584,-5000.0,0.00023665,30]
[363621183,1748789455595,-5000.0,0.00023665,30]
[363621184,1748789455604,-5000.0,0.00023665,30]
[363621185,1748789455614,-5000.0,0.00023665,30]
[363621186,1748789455625,-1148.19,0.00023665,30]
[363621187,1748789455635,-2043.6513554,0.00023682,2]
[363621188,1748789455645,-151.0,0.000237,7]
[363621189,1748789455655,-152.449439,0.000237,7]
[363621190,1748789455666,-126786.23,0.000237,7]
[363621191,1748789455675,-153.0,0.000237,31]
[363621192,1748789455686,-153.0,0.000237,31]
[363621193,1748789455695,-153.0,0.000237,31]
[363621194,1748789455705,-153.0,0.000237,31]
[363621195,1748789455715,-153.0,0.000237,31]
[363621196,1748789455725,-153.0,0.000237,31]
[363621197,1748789455738,-153.0,0.000237,31]
[363621198,1748789455747,-153.0,0.000237,31]
[363621199,1748789455757,-153.0,0.000237,31]
[363621200,1748789455767,-153.0,0.000237,31]
[363621201,1748789455777,-153.0,0.000237,31]
[363621202,1748789455786,-153.0,0.000237,31]
[363621203,1748789455796,-153.0,0.000237,31]
[363621204,1748789455806,-153.0,0.000237,31]
[363621205,1748789455815,-153.0,0.000237,31]
[363621206,1748789455825,-152.356031,0.000237,7]
[363621207,1748789455835,-151.0,0.000237,7]
[363621208,1748789455845,-155.021781,0.000237,7]
[363621209,1748789455855,-151.0,0.000237,7]
[363621210,1748789455865,-151.0,0.000237,7]
[363621211,1748789455879,-151.0,0.000237,7]
[363621212,1748789455890,-151.0,0.000237,7]
[363621213,1748789455900,-151.0,0.000237,7]
[363621214,1748789455911,-259.603862,0.000237,7]
[363621215,1748789455920,-1740.08153917,0.000237,2]
[363621216,1748789455930,-151.0,0.000237,7]
[363621217,1748789455942,-151.0,0.000237,7]
[363621218,1748789455955,-151.0,0.000237,7]
[363621219,1748789455965,-172.557018,0.000237,7]
[363621220,1748789455975,-172.557018,0.000237,7]
[363621221,1748789455986,-151.0,0.000237,7]
[363621222,1748789455996,-151.0,0.000237,7]
[363621223,1748789456006,-5000.0,0.00023705,2]
[363621224,1748789456017,-1740.08153913,0.00023706,2]
[363621225,1748789456028,-1740.08153913,0.00023712,2]
[363621226,1748789456040,-1740.08153913,0.00023718,2]
[363621227,1748789456050,-1740.08153913,0.00023724,2]
[363621228,1748789456061,-1740.08153913,0.00023729,2]
[363621229,1748789456071,-1740.08153913,0.00023735,2]
[363621230,1748789456080,-1740.08153913,0.00023741,2]
[363621231,1748789456090,-1740.08153913,0.00023747,2]
[363621232,1748789456100,-1740.08153913,0.00023753,2]
[363621233,1748789456110,-150.0,0.00023773,2]
[363621234,1748789456120,-1155.68,0.00023783,30]
[363621235,1748789456130,-167.76921185,0.00023788,2]
[363621236,1748789456141,-12666.87825251,0.0002379,30]
[363621237,1748789456151,-224.61,0.0002379,10]
[363621238,1748789456161,-10807.55566457,0.000238,3]
[363621239,1748789456170,-110577.84797375,0.000238,2]
[363621240,1748789456180,-461661.62569308,0.000238,2]
[363621241,1748789456190,-2000.0,0.000238,2]
[363621242,1748789456200,-2000.0,0.000238,2]
[363621243,1748789456209,-2000.0,0.000238,2]
[363621244,1748789456219,-10000.0,0.000238,7]
[363621245,1748789456228,-151.494595,0.000238,7]
[363621246,1748789456239,-151.0,0.000238,7]
[363621247,1748789456249,-326.09013068,0.000238,3]
[363621248,1748789456260,-151.0,0.000238,7]
[363621249,1748789456269,-151.0,0.000238,7]
[363621250,1748789456279,-151.0,0.000238,7]
[363621251,1748789456288,-151.0,0.000238,7]
[363621252,1748789456299,-151.56799,0.000238,7]
[363621253,1748789456308,-151.0,0.000238,7]
[363621254,1748789456318,-151.0,0.000238,2]
[363621255,1748789456328,-151.0,0.000238,7]
[363621256,1748789456337,-150.0,0.000238,5]
[363621257,1748789456348,-151.0,0.000238,2]
[363621258,1748789456357,-151.0,0.000238,7]
[363621259,1748789456369,-151.0,0.000238,7]
[363621260,1748789456379,-151.0,0.000238,7]
[363621261,1748789456390,-434.080116,0.000238,7]
[363621262,1748789456400,-434.080116,0.000238,7]
[363621263,1748789456410,-151.0,0.000238,7]
[363621264,1748789456420,-151.0,0.000238,7]
[363621265,1748789456430,-151.0,0.000238,7]
[363621266,1748789456440,-152.148333,0.000238,7]
[363621267,1748789456449,-151.0,0.000238,7]
[363621268,1748789456459,-28763.52,0.000238,2]
[363621269,1748789456469,-151.0,0.000238,7]
[363621270,1748789456479,-742.48089271,0.000238,2]
[363621271,1748789456490,-151.912082,0.000238,7]
[363621272,1748789456499,-151.0,0.000238,7]
[363621273,1748789456509,-151.0,0.000238,7]
[363621274,1748789456520,-151.0,0.000238,7]
[363621275,1748789456530,-151.0,0.000238,7]
[363621276,1748789456539,-151.0,0.000238,7]
[363621277,1748789456549,-151.0,0.000238,7]
[363621278,1748789456559,-151.0,0.000238,7]
[363621279,1748789456569,-151.0,0.000238,7]
[363621280,1748789456579,-172.557018,0.000238,7]
[363621281,1748789456589,-172.557018,0.000238,7]
[363621282,1748789456599,-151.0,0.000238,7]
[363621283,1748789456609,-151.0,0.000238,7]
[363621284,1748789456619,-708.0,0.00023811,2]
[363621285,1748789456628,-2227.0,0.00023811,2]
[363621286,1748789456638,-405.0,0.00023811,2]
[363621287,1748789456648,-10000.0,0.0002385,7]
[363621288,1748789456658,-160.0,0.0002385,5]
[363621289,1748789456668,-151.0,0.00023851,7]
[363621290,1748789456677,-151.0,0.00023851,7]
[363621291,1748789456687,-265.198524,0.00023851,7]
[363621292,1748789456699,-151.0,0.00023851,7]
[363621293,1748789456708,-151.0,0.00023851,7]
[363621294,1748789456718,-151.0,0.00023851,7]
[363621295,1748789456728,-151.0,0.00023851,7]
[363621296,1748789456738,-151.0,0.00023851,7]
[363621297,1748789456748,-151.0,0.00023851,7]
[363621298,1748789456758,-169.111676,0.00023851,7]
[363621299,1748789456768,-151.0,0.00023851,7]
[363621300,1748789456778,-151.0,0.00023851,7]
[363621301,1748789456787,-151.0,0.00023851,7]
[363621302,1748789456798,-241.630325,0.00023851,7]
[363621303,1748789456808,-241.630325,0.00023851,7]
[363621304,1748789456819,-241.630325,0.00023851,7]
[363621305,1748789456829,-241.630325,0.00023851,7]
[363621306,1748789456839,-241.630325,0.00023851,7]
[363621307,1748789456849,-241.630325,0.00023851,7]
[363621308,1748789456858,-241.630325,0.00023851,7]
[363621309,1748789456872,-241.630325,0.00023851,7]
[363621310,1748789456883,-241.630325,0.00023851,7]
[363621311,1748789456892,-241.630325,0.00023851,7]
[363621312,1748789456902,-241.630325,0.00023851,7]
[363621313,1748789456912,-241.630325,0.00023851,7]
[363621314,1748789456921,-241.630325,0.00023851,7]
[363621315,1748789456931,-241.630325,0.00023851,7]
[363621316,1748789456941,-241.630325,0.00023851,7]
[363621317,1748789456951,-241.630325,0.00023851,7]
[363621318,1748789456961,-241.630325,0.00023851,7]
[363621319,1748789456971,-241.630325,0.00023851,7]
[363621320,1748789456981,-241.630325,0.00023851,7]
[363621321,1748789456991,-241.630319,0.00023851,7]
[363621322,1748789457001,-151.0,0.00023851,7]
[363621323,1748789457011,-151.0,0.00023851,7]
[363621324,1748789457020,-151.0,0.00023851,7]
[363621325,1748789457028,-619.666959,0.00023851,7]
[363621326,1748789457037,-619.666959,0.00023851,7]
[363621327,1748789457045,-151.0,0.00023851,7]
[363621328,1748789457054,-151.0,0.00023853,7]
[363621329,1748789457064,-151.0,0.00023853,7]
[363621330,1748789457074,-153.701016,0.00023853,7]
[363621331,1748789457084,-151.0,0.00023853,7]
[363621332,1748789457094,-151.0,0.00023853,7]
[363621333,1748789457104,-151.0,0.00023853,7]
[363621334,1748789457114,-151.0,0.00023853,7]
[363621335,1748789457123,-167.197803,0.00023853,7]
[363621336,1748789457135,-151.0,0.00023853,7]
[363621337,1748789457147,-151.0,0.00023853,7]
[363621338,1748789457156,-151.0,0.00023853,7]
[363621339,1748789457165,-189.3738,0.00023853,7]
[363621340,1748789457175,-172.557018,0.00023853,7]
[363621341,1748789457184,-172.557018,0.00023853,7]
[363621342,1748789457195,-172.557018,0.00023853,7]
[363621343,1748789457204,-172.557018,0.00023853,7]
[363621344,1748789457214,-172.557018,0.00023853,7]
[363621345,1748789457224,-172.557018,0.00023853,7]
[363621346,1748789457234,-172.557018,0.00023853,7]
[363621347,1748789457245,-172.557018,0.00023853,7]
[363621348,1748789457255,-172.557018,0.00023853,7]
[363621349,1748789457265,-172.557018,0.00023853,7]
[363621350,1748789457276,-172.557018,0.00023853,7]
[363621351,1748789457286,-172.557018,0.00023853,7]
[363621352,1748789457379,-172.557018,0.00023853,7]
[363621353,1748789457390,-172.557025,0.00023853,7]
[363621354,1748789457401,-151.0,0.00023853,7]
[363621355,1748789457412,-151.0,0.00023853,7]
[363621356,1748789457423,-151.0,0.00023853,7]
[363621357,1748789457433,-151.0,0.00023853,7]
[363621358,1748789457443,-151.0,0.00023853,7]
[363621359,1748789457454,-151.0,0.00023853,7]
[363621360,1748789457464,-151.0,0.00023853,7]
[363621361,1748789457474,-151.0,0.00023853,7]
[363621362,1748789457483,-151.0,0.00023853,7]
[363621363,1748789457493,-151.0,0.00023853,7]
[363621364,1748789457503,-280.60702,0.00023853,7]
[363621365,1748789457513,-250.0,0.00023854,2]
[363621366,1748789457527,-213.406329,0.00023854,7]
[363621367,1748789457537,-151.0,0.00023854,7]
[363621368,1748789457546,-151.0,0.00023854,7]
[363621369,1748789457557,-151.0,0.00023854,7]
[363621370,1748789457567,-151.0,0.00023854,7]
[363621371,1748789457577,-151.0,0.00023854,7]
[363621372,1748789457587,-151.0,0.00023854,7]
[363621373,1748789457598,-151.0,0.00023854,7]
[363621374,1748789457609,-151.0,0.00023854,7]
[363621375,1748789457618,-151.0,0.00023854,7]
[363621376,1748789457629,-180.349824,0.00023854,7]
[363621377,1748789457639,-160.0,0.00023855,3]
[363621378,1748789457649,-151.0,0.00023855,7]
[363621379,1748789457659,-151.0,0.00023855,7]
[363621380,1748789457669,-151.0,0.00023855,7]
[363621381,1748789457682,-151.0,0.00023855,7]
[363621382,1748789457693,-231.183278,0.00023855,7]
[363621383,1748789457703,-151.0,0.00023855,7]
[363621384,1748789457714,-151.0,0.00023855,7]
[363621385,1748789457724,-151.0,0.00023855,7]
[363621386,1748789457733,-151.0,0.00023855,7]
[363621387,1748789457744,-151.0,0.00023855,7]
[363621388,1748789457755,-151.0,0.00023855,7]
[363621389,1748789457765,-167.450264,0.00023855,7]
[363621390,1748789457775,-283.888994,0.00023855,7]
[363621391,1748789457785,-151.0,0.00023855,7]
[363621392,1748789457796,-151.0,0.00023855,7]
[363621393,1748789457807,-151.0,0.00023855,7]
[363621394,1748789457818,-151.0,0.00023855,7]
[363621395,1748789457828,-151.0,0.00023855,7]
[363621396,1748789457840,-151.0,0.00023855,7]
[363621397,1748789457852,-151.0,0.00023855,7]
[363621398,1748789457862,-151.0,0.00023855,7]
[363621399,1748789457880,-151.0,0.00023855,7]
[363621400,1748789457891,-151.0,0.00023855,7]
[363621401,1748789457902,-179.732018,0.00023855,7]
[363621402,1748789457913,-151.0,0.00023855,2]
[363621403,1748789457923,-151.0,0.00023855,2]
[363621404,1748789457934,-151.0,0.00023855,2]
[363621405,1748789457946,-151.0,0.00023855,2]
[363621406,1748789457956,-242.91972,0.00023855,2]
[363621407,1748789457966,-160.02432,0.00023855,7]
[363621408,1748789457977,-284.572391,0.00023855,2]
[363621409,1748789457987,-151.0,0.00023855,7]
[363621410,1748789457998,-151.0,0.00023855,7]
[363621411,1748789458008,-188.916048,0.00023855,7]
[363621412,1748789458018,-619.666959,0.00023855,7]
[363621413,1748789458028,-619.666959,0.00023855,7]
[363621414,1748789458038,-619.666959,0.00023855,7]
[363621415,1748789458048,-619.666959,0.00023855,7]
[363621416,1748789458058,-619.666959,0.00023855,7]
[363621417,1748789458069,-619.666959,0.00023855,7]
[363621418,1748789458079,-434.080116,0.00023855,7]
[363621419,1748789458089,-396.70185411,0.00023855,7]
[363621420,1748789458194,-222.96510489,0.00023855,7]
[363621421,1748789458205,-434.080116,0.00023855,7]
[363621422,1748789458214,-619.666959,0.00023855,7]
[363621423,1748789458224,-434.080116,0.00023855,7]
[363621424,1748789458234,-619.666959,0.00023855,7]
[363621425,1748789458245,-434.080116,0.00023855,7]
[363621426,1748789458255,-434.080116,0.00023855,7]
[363621427,1748789458265,-619.666959,0.00023855,7]
[363621428,1748789458275,-434.080116,0.00023855,7]
[363621429,1748789458285,-434.080116,0.00023855,7]
[363621430,1748789458295,-619.666959,0.00023855,7]
[363621431,1748789458305,-619.666959,0.00023855,7]
[363621432,1748789458315,-434.080116,0.00023855,7]
[363621433,1748789458325,-619.666959,0.00023855,7]
[363621434,1748789458335,-434.080116,0.00023855,7]
[363621435,1748789458345,-619.666959,0.00023855,7]
[363621436,1748789458354,-434.080116,0.00023855,7]
[363621437,1748789458364,-619.666959,0.00023855,7]
[363621438,1748789458373,-434.080116,0.00023855,7]
[363621439,1748789458383,-619.666959,0.00023855,7]
[363621440,1748789458393,-434.080116,0.00023855,7]
[363621441,1748789458403,-619.666959,0.00023855,7]
[363621442,1748789458413,-434.080116,0.00023855,7]
[363621443,1748789458423,-434.080116,0.00023855,7]
[363621444,1748789458432,-434.080116,0.00023855,7]
[363621445,1748789458443,-619.666954,0.00023855,7]
[363621446,1748789458454,-434.080116,0.00023855,7]
[363621447,1748789458464,-434.080116,0.00023855,7]
[363621448,1748789458473,-434.080113,0.00023855,7]
[363621449,1748789458483,-196.3,0.00023855,7]
[363621450,1748789458493,-151.0,0.00023855,7]
[363621451,1748789458503,-151.0,0.00023855,7]
[363621452,1748789458512,-151.0,0.00023855,7]
[363621453,1748789458522,-151.0,0.00023855,7]
[363621454,1748789458532,-152.62958,0.00023855,7]
[363621455,1748789458542,-151.0,0.00023855,7]
[363621456,1748789458551,-190.868158,0.00023855,7]
[363621457,1748789458562,-151.0,0.00023855,7]
[363621458,1748789458573,-151.0,0.00023855,7]
[363621459,1748789458583,-151.0,0.00023858,7]
[363621460,1748789458592,-151.0,0.00023858,7]
[363621461,1748789458603,-151.0,0.00023858,7]
[363621462,1748789458613,-151.0,0.00023859,7]
[363621463,1748789458622,-151.0,0.00023859,7]
[363621464,1748789458632,-151.0,0.00023859,7]
[363621465,1748789458644,-151.0,0.00023859,7]
[363621466,1748789458653,-151.0,0.00023859,7]
[363621467,1748789458664,-151.0,0.00023859,7]
[363621468,1748789458675,-151.0,0.00023859,7]
[363621469,1748789458684,-151.0,0.00023859,7]
[363621470,1748789458695,-151.0,0.00023859,7]
[363621471,1748789458704,-151.0,0.00023859,7]
[363621472,1748789458714,-151.0,0.00023859,7]
[363621473,1748789458724,-151.0,0.00023859,7]
[363621474,1748789458734,-151.0,0.00023859,7]
[363621475,1748789458745,-151.0,0.00023859,7]
[363621476,1748789458755,-153.86388,0.00023859,7]
[363621477,1748789458764,-151.0,0.00023859,7]
[363621478,1748789458774,-151.0,0.00023859,7]
[363621479,1748789458783,-241.130764,0.00023859,7]
[363621480,1748789458793,-151.0,0.00023859,7]
[363621481,1748789458803,-151.0,0.00023859,7]